Cogmind - Beta 15 @@@ ROGUE MODE // 2025.06.16 @ 19:53:20 Player: k1ll3rb0t Result: Destroyed by H-66 Slayer with Heavy Assault Rifle Performance ------------- Evolutions (5) 2500 Regions Visited (7) 1400 Robots Destroyed (54) 270 Value Destroyed (1987) 1987 Prototype IDs (13) 260 Alien Tech Used (0) 0 Bonus (783) 783 TOTAL SCORE: 7200 Bonus ------- Registered with UFD 300 Met Optimus in HQ 500 Friendly Fire -17 Cogmind --------- Core Integrity 0/1000 Matter 300/300 Energy 91/100 System Corruption 12% Temperature Cool (0) Movement Rolling (155) Ox5 Location -5/Factory Parts ------- > --- POWER (1) -------- (None) > --- PROPULSION (2) --- Wheel > --- UTILITY (12) ----- High-capacity Storage Unit Structural Scanner Terrain Scan Processor Advanced Melee Analysis Suite Improved Field Recycling Unit > --- WEAPON (2) ------- Lance Lance > --- INVENTORY (20) --- Field Propulsion Drive Authchip [Weapon] Gatling Laser CPS Tube (2) Lance Lance Lance Lance Lance Lance Peak State ------------ > --- POWER ------------ Angular Momentum Engine > --- PROPULSION ------- Armored Huge Wheel > --- UTILITY ---------- Advanced Heat Sink High-capacity Storage Unit Visual Processing Unit Advanced Terrain Scanner Advanced Terrain Scan Processor 0b10 Decoder Chip [Scout] Medium Reactive Plating EM Shield Force Field Authchip [Propulsion] Scrapoid Pod > --- WEAPON ----------- Heavy Ion Cannon Gauss Cannon > --- INVENTORY -------- Improved Ion Engine Improved Deuterium Engine Medium Treads Armored Wheel Advanced Heat Sink Coolant Injector Huge Storage Unit Large Battery Large Matter Pod Advanced Sensor Array Advanced Shield Generator Authchip [Weapon] Gauss Cannon Magnetic Acceleration Cannon Mini Grenade Launcher Mini Grenade Launcher CPS Tube CPS Tube Great Maul DRS Beacon [Rating: 79] Favorites ----------- Power Improved Deuterium Engine Engine Improved Deuterium Engine Power Core Micro Fission Core Propulsion Spiked Treads Treads Spiked Treads Leg Titanium Leg Wheel Armored Huge Wheel Hover Unit Antigrav System Utility Improved Medium Armor Plating Device Advanced Heat Sink Storage Huge Storage Unit Processor Visual Processing Unit Hackware Authchip [Propulsion] Protection Improved Medium Armor Plating Weapon Medium Laser Energy Gun Medium Laser Energy Cannon Heavy Ion Cannon Ballistic Gun Assault Rifle Ballistic Cannon Advanced Assault Cannon Launcher Mini Grenade Launcher Impact Weapon Great Maul Piercing Weapon Lance Build | -11 -10 -10 -7 -7 -5 -5 -5 ------- Run | Yrd Mat Sub Rec Scr Fac Was Fac Slots Evolved 10 | . . . . . 10 . . Power . | . . . . . . . . Propulsion . | . . . . . . . . Utility 10 | . . . . . 10 . . Weapon . | . . . . . . . . Parts Attached 86 | 4 5 4 7 8 42 . 16 Power 8 | 1 . 1 1 . 3 . 2 Engine 7 | 1 . 1 1 . 2 . 2 Core 1 | . . . . . 1 . . Reactor . | . . . . . . . . Propulsion 21 | 2 . 2 2 4 7 . 4 Treads 6 | 2 . . . 3 . . 1 Leg 5 | . . 2 2 . 1 . . Wheel 8 | . . . . 1 4 . 3 Hover 2 | . . . . . 2 . . Flight . | . . . . . . . . Utility 38 | 1 1 . 2 1 25 . 8 Device 22 | . 1 . . . 15 . 6 Storage 4 | 1 . . 1 . 2 . . Processor 6 | . . . . . 4 . 2 Hackware 1 | . . . . 1 . . . Protection 5 | . . . 1 . 4 . . Artifact . | . . . . . . . . Weapon 19 | . 4 1 2 3 7 . 2 Energy Gun 3 | . 2 . . . 1 . . Energy Cannon 3 | . 1 . 1 1 . . . Ballistic Gun 3 | . 1 . . 1 1 . . Ballistic Cannon 5 | . . . 1 1 3 . . Launcher 2 | . . 1 . . 1 . . Special Weapon . | . . . . . . . . Impact Weapon 1 | . . . . . 1 . . Slashing Weapon . | . . . . . . . . Piercing Weapon 2 | . . . . . . . 2 Special Melee Weapon . | . . . . . . . . Unidentified Prototypes . | . . . . . . . . Corrupted Parts 1 | . . . . 1 . . . System Corruption 1 | . . . . 1 . . . Parts Lost 56 | . . 4 . . 41 2 9 Power 7 | . . 1 . . 4 . 2 Propulsion 13 | . . 2 . . 8 . 3 Utility 27 | . . 1 . . 20 2 4 Weapon 9 | . . . . . 9 . . Highest Loss Streak 23 | . . 4 . . 23 2 9 To Critical Strikes . | . . . . . . . . Average Backups 17 | 5 7 7 8 21 15 3 9 Power . | . 1 . . . 1 . . Propulsion 2 | 2 3 3 2 2 1 . 1 Utility 8 | . . . 2 11 6 1 1 Weapon 3 | 2 2 3 3 4 4 . 5 Tool/Special . | . . . . . . . . Unused Backups 26 | . 1 . 2 7 4 2 10 Power . | . . . . . . . . Propulsion 7 | . 1 . 2 2 1 . 1 Utility 7 | . . . . 3 2 1 1 Weapon 10 | . . . . 2 1 . 7 Tool/Special 2 | . . . . . . 1 1 Average Slot Usage (%) 90 | . 89 99 98 97 77 10 38 Engine 11 | . 14 14 14 14 4 . 2 Treads 11 | . 28 24 . 15 . . 4 Leg 8 | . . 3 28 7 . . . Wheel 2 | . . . . 2 4 . 1 Device 4 | . 6 13 . . 23 7 9 Storage 12 | . 14 14 14 14 4 . 4 Processor 2 | . . . . . 15 2 4 Protection 10 | . . . 12 14 5 . . Energy Gun 6 | . 11 . 13 7 . . . Energy Cannon 4 | . . . . 6 3 . . Ballistic Gun 1 | . 12 14 7 . . . . Ballistic Cannon 10 | . . . 6 14 4 . . Peak Build Rating 79 | 4 8 9 22 33 79 13 58 Average Rating 30 | 3 6 8 16 26 65 7 39 On Entrance 11 | . 4 8 7 22 33 12 2 Naked Turns 28 | . . . . . . 28 . Heaviest Build 112 | 10 16 14 105 112 112 2 73 Greatest Support 75 | 40 40 40 34 48 28 3 75 Greatest Overweight (x) 7 | . . . 3 5 5 . 7 Average Overweight (x) 1 | . . . . 2 2 . . Largest Inventory Capacity 25 | 8 8 8 25 25 25 5 20 Average Capacity 21 | 7 8 8 17 25 18 5 17 Most Carried 25 | 8 8 8 11 25 24 5 13 Average Carried 18 | 5 7 7 8 22 16 4 9 Final Capacity 25 | 8 8 8 25 25 5 5 20 Final Carried 25 | 8 8 5 11 25 5 5 10 Class Distribution -------------------- 86% | Mutant 6% | Derelict-Skirmisher 3% | Skirmisher Dominant Class ---------------- Mutant | -10/Materials Mutant | -10/Subcaves Mutant | -7/Recycling Mutant | -7/Scraptown Derelict-Skirmisher | -5/Factory Mutant | -5/Waste Mutant | -5/Factory Resources | -11 -10 -10 -7 -7 -5 -5 -5 ----------- Run | Yrd Mat Sub Rec Scr Fac Was Fac Matter Collected 2936 | 218 91 133 364 187 1700 80 163 Remotely 235 | . . . . . 235 . . Salvage Created 1880 | . 91 140 121 . 1436 . 92 Parts 89 | . 1 7 4 . 71 . 6 Haulers Intercepted . | . . . . . . . . Recyclers Shooed 11 | . . . 2 . 9 . . Parts Field Recycled . | . . . . . . . . Retrieved Matter . | . . . . . . . . Parts Self-Destructed 2 | . . 2 . . . . . Prevented . | . . . . . . . . Kills | -11 -10 -10 -7 -7 -5 -5 -5 ------- Run | Yrd Mat Sub Rec Scr Fac Was Fac Combat Hostiles Destroyed 40 | . 2 9 2 . 26 . 1 Melee 1 | . . . . . . . 1 Guns 9 | . 2 3 2 . 2 . . Cannons 22 | . . . . . 22 . . AOE 7 | . . 6 . . 1 . . Classes Destroyed 10 | . 1 2 1 . 6 . . Worker 4 | . . . . . 3 . 1 Builder 5 | . . . . . 5 . . Tunneler 2 | . . . . . 1 . 1 Recycler 3 | . . . . . 3 . . Swarmer 7 | . . 4 . . 3 . . Grunt 19 | . 2 . . . 17 . . Sentry 4 | . . . 2 . 2 . . Hunter 2 | . . . . . 1 . 1 Programmer 3 | . . . . . 3 . . Subdweller 5 | . . 5 . . . . . Best Kill Streak 11 | . 2 7 1 . 11 . 1 Combat Bots Only 7 | . 2 7 1 . 6 . 1 Max Kills in Single Turn 2 | . 1 1 1 . 2 . 1 Gunslinging . | . . . . . . . . Exploded 1 | . . 1 . . 1 . . Melee 1 | . . . . . . . 1 Uniques/NPCs Destroyed . | . . . . . . . . Combat | -11 -10 -10 -7 -7 -5 -5 -5 -------- Run | Yrd Mat Sub Rec Scr Fac Was Fac Hostile Shots Fired 483 | . 20 39 72 . 290 2 60 Missed 132 | . 6 11 23 . 76 . 16 Hits 351 | . 14 28 49 . 214 2 44 Melee 2 | . . . . . . 2 . Projectile 349 | . 14 28 49 . 214 . 44 AOE 2 | . . . . . 1 . 1 Critical Strikes 11 | . . 2 . . 9 . . Damage Taken 5829 | . 174 540 385 . 3871 104 755 Core 1252 | . 49 122 71 . 718 104 188 Absorbed by Shields 293 | . . . . . 293 . . Ignored by Resistances 41 | . . . . . 41 . . Core Remaining (%) 51 | 100 . . . 3 . . . Volleys Fired 178 | . 13 24 13 . 128 . . Largest 2 | . 2 2 2 . 2 . . Hottest 109 | . 70 70 90 . 109 . . Shots Fired 306 | . 25 35 26 . 220 . . Gun 94 | . 24 12 21 . 37 . . Cannon 182 | . 1 . 5 . 176 . . Launcher 30 | . . 23 . . 7 . . Special . | . . . . . . . . Kinetic 171 | . 12 11 13 . 135 . . Thermal 104 | . 12 1 13 . 78 . . Explosive 30 | . . 23 . . 7 . . Electromagnetic 1 | . 1 . . . . . . Robot Hit Streak 21 | . 7 7 16 . 21 . . Robot Miss Streak 4 | . 3 2 2 . 4 . . Penetration Max 1 | . . . . . 1 . . Secondary Targets 1 | . 1 . . . . . . Max Gunslinging Chain 1 | . 1 . . . . . . Shots Hit Robots 204 | . 12 10 20 . 153 . 9 Core Hits 112 | . 4 24 9 . 72 . 3 Critical Kills 1 | . . . . . 1 . . Critical Parts Destroyed . | . . . . . . . . Critical Strikes 18 | . . . 2 . 15 . 1 Burn 2 | . . . 2 . . . . Meltdown 1 | . . . . . 1 . . Blast 14 | . . . . . 14 . . Impale 1 | . . . . . . . 1 Melee Attacks 25 | . . . . . 9 . 16 Impact 9 | . . . . . 9 . . Slashing . | . . . . . . . . Piercing 16 | . . . . . . . 16 Sneak Attacks 5 | . . . . . 1 . 4 Combat Hostiles . | . . . . . . . . Follow-up Attacks . | . . . . . . . . Damage Inflicted 6905 | . 150 992 296 . 5029 . 438 Guns 907 | . 150 112 219 . 426 . . Cannons 3975 | . . . 77 . 3898 . . Explosions 1334 | . . 880 . . 454 . . Melee 689 | . . . . . 251 . 438 Ramming . | . . . . . . . . Kinetic 3421 | . 75 100 158 . 3088 . . Thermal 1497 | . 75 12 138 . 1272 . . Explosive 1298 | . . 880 . . 418 . . Electromagnetic . | . . . . . . . . Impact 251 | . . . . . 251 . . Slashing . | . . . . . . . . Piercing 438 | . . . . . . . 438 Highest Corruption 12 | . . . . 1 12 12 12 Average Corruption 10 | . . . . 1 6 12 12 Corruption Purged . | . . . . . . . . Corruption Blocked . | . . . . . . . . Effects 26 | . . . . . 5 5 16 Message Errors 7 | . . . . . 1 . 6 Matter Fused 5 | . . . . . 1 . 4 Heat Flow Errors 2 | . . . . . 1 . 1 Energy Discharges 5 | . . . . . 2 1 2 Data Loss (minor) 1 | . . . . . . . 1 Data Loss (major) 3 | . . . . . . 1 2 Misdirections 3 | . . . . . . 3 . Overload Shots . | . . . . . . . . Overflow Damage 425 | . . 6 . . 264 . 155 Projectiles 120 | . . . . . 120 . . Explosions 56 | . . 6 . . 50 . . Melee 249 | . . . . . 94 . 155 Knockbacks 41 | . . . . . 41 . . Impact 3 | . . . . . 3 . . Kinetic 28 | . . . . . 28 . . Secondary 10 | . . . . . 10 . . Self-Inflicted Damage 280 | . . 200 . . 80 . . Shots 9 | . . 6 . . 3 . . Rammed . | . . . . . . . . Targets Rammed . | . . . . . . . . Kicked . | . . . . . . . . Crushed . | . . . . . . . . Highest Temperature 240 | . 141 235 240 . 171 . 215 Average Temperature 69 | . 60 126 91 . 43 . 121 Received Heat Transfer 1681 | . 96 382 126 . 1065 . 12 Siege Activations . | . . . . . . . . Martial Activations . | . . . . . . . . Shielding Activations . | . . . . . . . . Robots Disrupted . | . . . . . . . . Combat Hostiles . | . . . . . . . . Robots Corrupted 2 | . . . . . 2 . . Combat Hostiles . | . . . . . . . . Parts Fried 2 | . . . . . 2 . . Impact Corruptions 10 | . . . . . 10 . . Robots Melted 1 | . . . . . 1 . . Combat Hostiles 1 | . . . . . 1 . . Parts Melted 5 | . . 1 1 . 3 . . Heat Transferred 2677 | . 222 37 555 . 1863 . . Parts Sabotaged . | . . . . . . . . Parts Stolen . | . . . . . . . . Parts Stripped . | . . . . . . . . Power Chain Reactions . | . . . . . . . . Alert | -11 -10 -10 -7 -7 -5 -5 -5 ------- Run | Yrd Mat Sub Rec Scr Fac Was Fac Maximum Alert Level 1 | . . . . . 1 . . Low Security (%) 91 | 100 100 . 100 . 79 100 100 Level 1 8 | . . . . . 20 . . Level 2 . | . . . . . . . . Level 3 . | . . . . . . . . Level 4 . | . . . . . . . . Level 5 . | . . . . . . . . High Security . | . . . . . . . . Max Security . | . . . . . . . . Peak Influence 294 | . 55 . 127 . 294 70 20 Initial 127 | . . . 127 . . 70 14 Average 43 | . 19 . 19 . 83 47 1 Influence Increases 1459 | . 65 335 41 . 982 . 36 Destroy 0b10 Robot/C 700 | . 40 80 40 . 520 . 20 Destroy 0b10 Robot/NC 70 | . . . . . 60 . 10 Destroy Leader 90 | . 10 . . . 80 . . Successful Hack 12 | . . . . . 12 . . Disable Machine 75 | . 15 . . . 60 . . Destroy Structure 167 | . . . 1 . 160 . 6 Lose Combat Pursuer 345 | . . 255 . . 90 . . Influence Decreases 1459 | . 60 75 306 . 781 181 56 Entered New Map 278 | . . 3 138 . . 131 6 Time Decay 583 | . 60 32 168 . 263 30 30 Lost Part 464 | . . 40 . . 384 20 20 Purge Threat 134 | . . . . . 134 . . Squads Dispatched 6 | . . . . . 6 . . Investigation 1 | . . . . . 1 . . Extermination 2 | . . . . . 2 . . Reinforcement 3 | . . . . . 3 . . Assault . | . . . . . . . . Garrison . | . . . . . . . . Intercept . | . . . . . . . . Searches Triggered . | . . . . . . . . Construction Impeded 2 | . . . . . 2 . . Haulers Reinforced 1 | . . . . . 1 . . Active Scanning Responses . | . . . . . . . . Cargo Convoy Interrupts . | . . . . . . . . Stealth | -11 -10 -10 -7 -7 -5 -5 -5 --------- Run | Yrd Mat Sub Rec Scr Fac Was Fac Distress Signals 7 | . . . . . 6 . 1 Communications Jammed . | . . . . . . . . Distress Signals . | . . . . . . . . Times Spotted 77 | . 5 17 2 . 44 6 3 Peak Tracking Total 11 | . 3 8 1 . 11 6 2 Tactical Retreats 10 | . . 4 . . 6 . . Traps | -11 -10 -10 -7 -7 -5 -5 -5 ------- Run | Yrd Mat Sub Rec Scr Fac Was Fac Traps Triggered 1 | . . . . . 1 . . Indirectly . | . . . . . . . . Trap Hack Attempts . | . . . . . . . . Triggered . | . . . . . . . . Disarmed . | . . . . . . . . Reprogrammed . | . . . . . . . . Reused . | . . . . . . . . Traps Extracted . | . . . . . . . . Installed . | . . . . . . . . Triggered . | . . . . . . . . Machines | -11 -10 -10 -7 -7 -5 -5 -5 ---------- Run | Yrd Mat Sub Rec Scr Fac Was Fac Machines Disabled 8 | . 1 3 . . 4 . . Max in Single Turn 1 | . 1 1 . . 1 . . Machines Repaired . | . . . . . . . . Machines Dismantled . | . . . . . . . . Machines Sabotaged . | . . . . . . . . Overloaded Fab Kills . | . . . . . . . . Hacking | -11 -10 -10 -7 -7 -5 -5 -5 --------- Run | Yrd Mat Sub Rec Scr Fac Was Fac Machines Accessed 15 | . . . 5 4 4 . 2 Terminals 7 | . . . 5 . 2 . . Fabricators 3 | . . . . . 2 . 1 Repair Stations . | . . . . . . . . Recycling Units 1 | . . . . . . . 1 Scanalyzers . | . . . . . . . . Garrison Access . | . . . . . . . . Total Hacks 55 | . . . 12 29 11 . 3 Successful 36 | . . . . 29 6 . 1 Failed 19 | . . . 12 . 5 . 2 Catastrophic 7 | . . . 5 . 2 . . Database Lockouts . | . . . . . . . . Manual 8 | . . . 5 . 1 . 2 Terminals 19 | . . . 12 . 7 . . Fabricators 5 | . . . . . 4 . 1 Repair Stations . | . . . . . . . . Recycling Units 2 | . . . . . . . 2 Scanalyzers . | . . . . . . . . Garrison Access . | . . . . . . . . Terminal Hacks 34 | . . . . 29 5 . . Record 23 | . . . . 23 . . . Robot Analysis 6 | . . . . 5 1 . . Alert Level 1 | . . . . . 1 . . Unreport Threat 1 | . . . . . 1 . . Locate Traps 1 | . . . . . 1 . . Zone Layout 1 | . . . . . 1 . . Proto ID Catalog 1 | . . . . 1 . . . Fabricator Hacks 2 | . . . . . 1 . 1 Network Status 2 | . . . . . 1 . 1 Repair Station Hacks . | . . . . . . . . Recycling Unit Hacks . | . . . . . . . . Scanalyzer . | . . . . . . . . Garrison Access Hacks . | . . . . . . . . Unauthorized Hacks . | . . . . . . . . Terminals . | . . . . . . . . Fabricators . | . . . . . . . . Repair Stations . | . . . . . . . . Recycling Units . | . . . . . . . . Scanalyzers . | . . . . . . . . Garrison Access . | . . . . . . . . Data Cores Recovered . | . . . . . . . . Used . | . . . . . . . . Hacking Detections 9 | . . . 5 . 3 . 1 Full Trace Events 4 | . . . 3 . 1 . . Feedback Events . | . . . . . . . . Feedback Blocked . | . . . . . . . . Robot Schematics Acquired . | . . . . . . . . Robots Built . | . . . . . . . . Authchips . | . . . . . . . . Time . | . . . . . . . . Total Robot Build Rating . | . . . . . . . . Part Schematics Acquired . | . . . . . . . . Parts Built . | . . . . . . . . Authchips . | . . . . . . . . Time . | . . . . . . . . Total Part Build Rating . | . . . . . . . . Parts Repaired . | . . . . . . . . Time . | . . . . . . . . Parts Recycled . | . . . . . . . . Recycled Matter . | . . . . . . . . Retrieved Matter . | . . . . . . . . Retrieved Components . | . . . . . . . . Parts Scanalyzed . | . . . . . . . . Part Schematics Acquired . | . . . . . . . . Parts Damaged . | . . . . . . . . Bothacking | -11 -10 -10 -7 -7 -5 -5 -5 ------------ Run | Yrd Mat Sub Rec Scr Fac Was Fac Used RIF Installer . | . . . . . . . . Robots Hacked . | . . . . . . . . Non-combat . | . . . . . . . . Combat . | . . . . . . . . Robot Hacks Applied . | . . . . . . . . Relay Couplers Released . | . . . . . . . . Fabnet Peak Effective % . | . . . . . . . . Robots Rewired . | . . . . . . . . Allies Hacked . | . . . . . . . . Hacks Repelled . | . . . . . . . . Allies | -11 -10 -10 -7 -7 -5 -5 -5 -------- Run | Yrd Mat Sub Rec Scr Fac Was Fac Total Allies . | . . . . . . . . Largest Group . | . . . . . . . . Highest-Rated Group . | . . . . . . . . Highest-Rated Ally . | . . . . . . . . Total Orders . | . . . . . . . . Ally Attacks . | . . . . . . . . Total Damage . | . . . . . . . . Kills . | . . . . . . . . Allies Corrupted . | . . . . . . . . Allies Melted . | . . . . . . . . Intel | -11 -10 -10 -7 -7 -5 -5 -5 ------- Run | Yrd Mat Sub Rec Scr Fac Was Fac Active Infowar (turns) 1839 | . 87 256 . . 1196 41 259 Optics 1146 | . . . . . 1114 32 . Sensors 478 | . 87 256 . . 94 41 . Terrain 1262 | . . . . . 1010 . 252 Structural 55 | . . . . . . . 55 Seismic 33 | . . . . . 33 . . Decoding 1143 | . . . . . 1143 . . Robot Analysis Total 6 | . . . . 5 1 . . Derelict Logs Recovered . | . . . . . . . . Drone Launches . | . . . . . . . . Drone Recoveries . | . . . . . . . . Decoded 0b10 Intel 16 | . . . . . 16 . . Traps 11 | . . . . . 11 . . Emergency Access 5 | . . . . . 5 . . Exploration | -11 -10 -10 -7 -7 -5 -5 -5 ------------- Run | Yrd Mat Sub Rec Scr Fac Was Fac Turns Passed 8359 | 68 182 268 958 5194 1198 69 422 Spaces Moved 3373 | 40 84 130 487 1766 498 126 242 Core 189 | 9 . . . . 54 126 . Treads 1231 | 31 84 112 . 787 . . 217 Legs 935 | . . 18 487 425 5 . . Wheels 1014 | . . . . 554 435 . 25 Hover 4 | . . . . . 4 . . Flight . | . . . . . . . . Fastest Speed 50 | 50 160 120 120 145 50 50 125 Average Speed 221 | 135 160 154 182 291 129 50 143 Slowest Speed 660 | 160 160 160 340 660 360 50 185 Overloaded Moves . | . . . . . . . . Propulsion Burnouts . | . . . . . . . . Robots Hopped . | . . . . . . . . Potential Cave-ins . | . . . . . . . . Cave-ins Triggered . | . . . . . . . . Exploration Rate (%) 37 | 5 14 15 69 93 16 78 7 Regions Visited 7 Branch Regions 3 Pre-discovered Areas . | . . . . . . . . Known Exits Taken . | . . . . . . . . Unknown Exits Taken 5 | 1 1 1 1 1 . . . Scrap Searched 11 | . . 2 . 9 . . . Spaces Dug 12 | . . . . . 9 . 3 Terrain Destroyed 227 | . . 129 2 . 93 . 3 Melee 5 | . . . . . 2 . 3 Projectile 31 | . . . 2 . 29 . . AOE 191 | . . 129 . . 62 . . Terrain Rammed . | . . . . . . . . Walls Destroyed . | . . . . . . . . Machines Disabled . | . . . . . . . . Actions | -11 -10 -10 -7 -7 -5 -5 -5 --------- Run | Yrd Mat Sub Rec Scr Fac Was Fac Total 3903 | 53 107 161 531 1819 810 133 289 Wait 111 | . . . 7 . 102 1 1 Move 3367 | 39 83 129 486 1765 498 125 242 Hop . | . . . . . . . . Pick Up 79 | 10 3 1 8 27 13 3 14 Fast Attach 36 | 2 2 . 4 3 16 . 9 Attach 43 | 2 2 3 1 2 25 . 8 Detach 4 | . 1 . . 1 2 . . Swap 20 | . 1 3 4 3 9 . . Drop 41 | . 2 1 8 18 8 4 . Fire 178 | . 13 24 13 . 128 . . Melee 24 | . . . . . 9 . 15 Ram . | . . . . . . . . Kick . | . . . . . . . . Crush . | . . . . . . . . Escape Stasis . | . . . . . . . . Rewire . | . . . . . . . . Trap . | . . . . . . . . Miscellaneous . | . . . . . . . . Route ------- -11/Scrapyard -10/Materials -10/Subcaves -7/Recycling -7/Scraptown (discovered 2 exits: *Fac x2) -5/Factory -5/Waste -5/Factory History --------- Turn | Location | Event 8 | -11/Scrapyard | Discovered new exit (range 16) 69 | -11/Scrapyard | Entered Materials 174 | -10/Materials | Discovered new exit (range 10) 251 | -10/Materials | Entered Subcaves 252 | -10/Subcaves | Approached by a straggling Scientist 302 | -10/Subcaves | Ambushed by Subdweller buried in earth 310 | -10/Subcaves | Build established: Mutant 476 | -10/Subcaves | Ambushed by Subdweller buried in earth 484 | -10/Subcaves | Core integrity fell below 50% 504 | -10/Subcaves | Destroyed 7 combat bots 505 | -10/Subcaves | Discovered new exit (range 9) 519 | -10/Subcaves | Entered Recycling 538 | -7/Recycling | Lost 4 parts (1p2n1u) 854 | -7/Recycling | Core integrity fell below 20% 1319 | -7/Recycling | Scanned before Scraplab entrance 1439 | -7/Recycling | Entered Scraplab 1470 | -7/Recycling | Discovered new exit (range 2) 1477 | -7/Recycling | Entered Scraptown 2009 | -7/Scraptown | Visited UFD Registry 2009 | -7/Scraptown | Registered with UFD as "Arcback" 2125 | -7/Scraptown | Visited Curators Association 2247 | -7/Scraptown | Visited LU-1G1's Boring Crew 2736 | -7/Scraptown | Visited Scrapoid Pod Storage 2753 | -7/Scraptown | Found Scrapoid Pod 2825 | -7/Scraptown | Visited Research Penetration Think Tank 2896 | -7/Scraptown | Visited Supply Room 3069 | -7/Scraptown | Visited Infowarlord's Domain 3156 | -7/Scraptown | Visited Scrapoid Research Area 3336 | -7/Scraptown | Visited Derelict Rescue Squad 3358 | -7/Scraptown | Found DRS Beacon 3431 | -7/Scraptown | Visited Science Guys 3611 | -7/Scraptown | Visited Analyses Database 3748 | -7/Scraptown | Visited Shadow of the Wyrm 3798 | -7/Scraptown | Visited The Evicted 3856 | -7/Scraptown | Visited Fellowship of the Rings 4148 | -7/Scraptown | Discovered new exit (range 11) 5572 | -7/Scraptown | Visited Cave Peace 5677 | -7/Scraptown | Visited Bundlers 5962 | -7/Scraptown | Visited SPCMW 6000 | -7/Scraptown | Visited Comm Corps 6538 | -7/Scraptown | Met Optimus 6538 | -7/Scraptown | Accepted into 0bPrime 6664 | -7/Scraptown | Discovered new exit (range 3) 6671 | -7/Scraptown | Entered Factory 6671 | -5/Factory | Evolved 10 slots: Utility x10 6930 | -5/Factory | Discovered new exit (range 18) 6964 | -5/Factory | Build established: Derelict-Skirmisher 7603 | -5/Factory | Lost 7 parts (4u3w) 7768 | -5/Factory | Core integrity fell below 50% 7786 | -5/Factory | Lost 23 parts (3p5n11u4w) 7837 | -5/Factory | System corruption reached 10% 7869 | -5/Factory | Sucked down chute 7869 | -5/Factory | Entered Waste 7877 | -5/Waste | Lost 8 parts (1p3n2u2w) 7881 | -5/Waste | Spotted C-40 Crusher 7883 | -5/Waste | Spotted C-40 Crusher 7901 | -5/Waste | Crushed by Compactor (1 part destroyed, 1 dropped) 7903 | -5/Waste | Spotted C-40 Crusher 7909 | -5/Waste | Spotted C-40 Crusher 7910 | -5/Waste | Spotted C-40 Crusher 7910 | -5/Waste | Crushed by Compactor (1 part destroyed) 7911 | -5/Waste | Core integrity fell below 20% 7920 | -5/Waste | Spotted C-40 Crusher 7934 | -5/Waste | Discovered new exit (range 10) 7938 | -5/Waste | Entered Factory 8026 | -5/Factory | Build established: Mutant 8360 | -5/Factory | Destroyed by H-66 Slayer with Heavy Assault Rifle Last Messages --------------- 08353_ Terrain Scanner destroyed. 08353_ Penetrated by Slug. 08353_ Adv. Cooling System destroyed. 08353_ K-01 Serf destroyed. 08353_ R-10 Processor collects Lgt. Fission Core. 08353_ U-05 Engineer builds a Wall. 08354_ U-05 Engineer lays Concrete. 08354_ K-01 Serf collects debris. 08354_ U-05 Engineer lays Concrete. 08355_ U-05 Engineer builds a Wall. 08355_ U-05 Engineer lays Concrete. 08356_ K-01 Serf collects debris. 08357_ Penetrated by Slug. 08357_ Slug penetrates K-01 Serf. 08357_ K-01 Serf destroyed. 08359_ MSUZYYOMK,%R=:SP/YR6GB9FSTHEZPJ 08359_ K-01 Serf collects debris. 08359_ U-05 Engineer lays Concrete. 08360_ Penetrated by Slug. Map ----- +----------------------------------------------------+ | ?????????????????????????????????????????????????? | | ?????????????????????????????????????????????????? | | ?????????????????????????????????????????????????? | | ?????????????????????????????????????????????????? | | ?????????????????????????????????????????????????? | | ????????????????????????? ???????????????????????? | | ????????????????????????? ?????????????????????? | | ??????????????????????? ##????????????????? | | ???????????????????????? ##????????????????? | | ??????????????????? ???? ##????????????????? | | ????????????????? ??????" #?????????????????? | | ????????????? # ????"??" ##?????????????????? | | ???????????#?## ?"??"?"" ##??????????? ?????? | | ?????????????## ????""" ##??????"????? ????? | | ????????????### ???? ##?###??????"? ????? | | ??????????#?### """"""" ####?#?"""?"????? ?? | | ?????????????## """"""" ##?#??? ?? ???? ? ?? | | ?????????????## """"""" ############?#?????? | | ?????????????## "" """"R ##############???#?# | | ??????????"??## # """ """ ##?????? ? | | ????????? ???## # """ """ ##?? ???? | | ????## ### / # """ """ + #? ? "? | | ????####+###### // # ##?#?????? | | ??? h + ! ##?? ????? | | ???## m * # ##?? ??? | | ???## %%@ # ##?#? ??" | | ???## ????####""#u##;;;## # % ###? ??"" | | ??????????#### " #### ##############? ??? | | ???????????###"" " ##?# ?? ?? | | ????????? " ""##### ### ###????? | | ?????? # " #### T## ####?? ? ? | | ?????? #=% " ##### ## #??#?##+## | | ????? + * " ##### ###+##+####### | | ?????#### # ! " ##?## # """"" # | | ?????#### #"""""####### + """"" + | | ???????## # "" F" # | | ??????? # # # | | ??????? # """"" # # | | ??????? # ""T"" # # | | ???????????" "???? ?# """ """ # | | ???????????????????? ##### ###### """ """ + | | ???????????????????? #???# ???### """ """ # | | ???????????????????? #???#??###?# # | | ????????????????????????????#?#??# # | | ???????????????????????????+??#?## # | | ?????????????????????????? ?????##########+#### | | ??????????????????????#??????????#?#????? ? | | ??????????????????????????????##?????#?? ? ? | | ???????????????????????????" ?####????##? ? | | ???????????????????????????"???###?#??## ? | +----------------------------------------------------+ Best States ------------- Heat Dissipation 97 Coolant Potential 65 Energy Generation 18 Energy Capacity 300 Matter Stores 300 Matter Capacity 300 Sight Range 18 Robot Scan Range 16 Terrain Scan Range 20 Terrain Scan Density 210 Armor Coverage 450 Resistance: KI 30 Resistance: EM 25 Evasion (%) 55 Melee Accuracy 8 Target Analysis 6 Recoil Reduction 2 Authchip Count 3 Item Schematics ----------------- None Robot Schematics ------------------ None Fabricated ------------ Nothing Repaired ---------- Nothing Alien Tech Used ----------------- None Achievements -------------- None Challenges ------------ None Game ------ Seed SmallStructuralMount Manual? 0 Play Time 01:13:24 Cumulative 113.5 hours Start 2025.06.16 @ 18:36:42 End 2025.06.16 @ 19:53:20 Sessions 1 Manual Loads 0 Difficulty Rogue Special Mode None Game No. 41 Rogue 41 Adventurer 0 Explorer 0 Win Type - Total 2 Types 2/0/0/0/0/0/0/0/0/0 Lore% 47 Gallery% 51 Achievement% 44 Wizard Run 0 Options --------- Layout 1 ASCII 0 Keyboard 0 Movement Mouse Keybinds 0 Fullscreen 1 Font 32/SmallcapsGlow Map View 50x35 Zoom Use 0% Tactical HUD 1 Map Filters NONE Filters NONE Steam 1 RUN: 67ef85b5-f7f6-43de-865e-dbaced68957e